bitfinex/quotes_BTCUSD_20240611
["timestamp","ask_amount","ask_price","bid_price","bid_amount"]
[1718088098837,0.00286,67708.0,67707.0,5.40446093]
[1718088099050,0.00286,67708.0,67707.0,5.67521184]
[1718088099278,0.01686,67708.0,67707.0,5.66521184]
[1718088099913,0.01486,67708.0,67707.0,5.67521184]
[1718088100123,0.00086,67708.0,67707.0,5.67521184]
[1718088100353,0.00286,67708.0,67707.0,5.81953177]
[1718088100771,0.00086,67708.0,67707.0,5.81953177]
[1718088101203,0.00086,67708.0,67707.0,5.82253177]
[1718088101708,0.00786,67708.0,67707.0,5.82253177]
[1718088101880,0.00786,67708.0,67707.0,5.81953177]
[1718088102125,0.00086,67708.0,67707.0,5.81953177]
[1718088102301,0.00286,67708.0,67707.0,5.80953177]
[1718088103547,0.00286,67708.0,67707.0,5.81253177]
[1718088103777,0.00086,67708.0,67707.0,5.81253177]
[1718088103983,0.00086,67708.0,67707.0,5.80953177]
[1718088104411,0.00086,67708.0,67707.0,5.81253177]
[1718088104620,0.00086,67708.0,67707.0,5.59893177]
[1718088105028,0.00086,67708.0,67707.0,5.45461184]
[1718088105206,0.00286,67708.0,67707.0,5.45461184]
[1718088105634,0.00086,67708.0,67707.0,5.45461184]
[1718088105856,0.00486,67708.0,67707.0,5.45461184]
[1718088106289,0.00086,67708.0,67707.0,5.45461184]
[1718088106543,0.00086,67708.0,67707.0,5.60593177]
[1718088106777,0.00086,67708.0,67707.0,5.85043177]
[1718088106778,0.00986,67708.0,67707.0,5.85043177]
[1718088106997,0.00086,67708.0,67707.0,5.85343177]
[1718088107425,0.00086,67708.0,67707.0,5.85043177]
[1718088107630,0.00086,67708.0,67707.0,5.97343177]
[1718088107831,0.00086,67708.0,67707.0,5.97643177]
[1718088108516,0.00086,67708.0,67707.0,5.83078086]
[1718088108730,0.00086,67708.0,67707.0,5.97562483]
[1718088109199,0.00386,67708.0,67707.0,5.97562483]
[1718088109683,0.00086,67708.0,67707.0,5.97562483]
[1718088109916,0.00286,67708.0,67707.0,5.97862483]
[1718088110326,0.00286,67708.0,67707.0,5.97562483]
[1718088110739,0.00286,67708.0,67707.0,5.97862483]
[1718088111368,0.00286,67708.0,67707.0,5.97562483]
[1718088111585,0.00086,67708.0,67707.0,5.97562483]
[1718088112448,0.00086,67708.0,67707.0,5.97862483]
[1718088112664,0.00286,67708.0,67707.0,5.97862483]
[1718088112869,0.00286,67708.0,67707.0,6.27401483]
[1718088113309,0.00086,67708.0,67707.0,6.27401483]
[1718088113521,0.00086,67708.0,67707.0,6.27101483]
[1718088113745,0.00086,67708.0,67707.0,6.57101483]
[1718088113960,0.00086,67708.0,67707.0,6.57401483]
[1718088114399,0.00086,67708.0,67707.0,6.37401483]
[1718088114615,0.00086,67708.0,67707.0,6.37101483]
[1718088114823,0.00086,67708.0,67707.0,6.37401483]
[1718088115358,0.00186,67708.0,67707.0,6.37101483]
[1718088116252,0.00086,67708.0,67707.0,6.37101483]
[1718088116910,0.00086,67708.0,67707.0,6.27401483]
[1718088117133,0.00086,67708.0,67707.0,6.48761483]
[1718088117348,0.00086,67708.0,67707.0,6.48461483]
[1718088117788,0.00086,67708.0,67707.0,6.48761483]
[1718088118239,0.00086,67708.0,67707.0,6.58761483]
[1718088118449,0.00086,67708.0,67707.0,6.48761483]
[1718088119068,0.00086,67708.0,67707.0,6.09191483]
[1718088119993,0.00086,67708.0,67707.0,6.11594604]
[1718088120401,0.00086,67708.0,67707.0,6.11894604]
[1718088121095,0.00086,67708.0,67707.0,6.11594604]
[1718088121330,0.00086,67708.0,67707.0,6.11894604]
[1718088121766,0.00086,67708.0,67707.0,5.70112483]
[1718088121995,0.00086,67708.0,67707.0,5.78652483]
[1718088122212,0.00086,67708.0,67707.0,5.5568049]
[1718088122420,0.00086,67708.0,67707.0,5.5422049]
[1718088123054,0.00386,67708.0,67707.0,5.5422049]
[1718088123267,0.00386,67708.0,67707.0,5.5392049]
[1718088123786,0.00386,67708.0,67707.0,5.53991239]
[1718088124203,0.00386,67708.0,67707.0,5.53691239]
[1718088124412,0.08326,67708.0,67707.0,5.53691239]
[1718088124638,0.08026,67708.0,67707.0,5.53991239]
[1718088125043,0.08026,67708.0,67707.0,5.53691239]
[1718088125257,0.08426,67708.0,67707.0,5.53691239]
[1718088125636,0.08026,67708.0,67707.0,5.53691239]
[1718088125888,0.08726,67708.0,67707.0,5.53691239]
[1718088126557,0.08726,67708.0,67707.0,5.53991239]
[1718088126799,0.00786,67708.0,67707.0,5.68423232]
[1718088127057,0.00786,67708.0,67707.0,5.93803232]
[1718088127463,0.00786,67708.0,67707.0,6.11875896]
[1718088128735,0.00786,67708.0,67707.0,6.12050157]
[1718088128981,0.00786,67708.0,67707.0,6.76384302]
[1718088129822,0.00786,67708.0,67707.0,6.76084302]
[1718088130258,0.00086,67708.0,67707.0,6.76384302]
[1718088130623,0.00086,67708.0,67707.0,6.55034302]
[1718088130890,0.00186,67708.0,67707.0,6.76384302]
[1718088131106,0.00186,67708.0,67707.0,6.76084302]
[1718088131517,0.00186,67708.0,67707.0,6.76384302]
[1718088131701,0.00186,67708.0,67707.0,6.55034302]
[1718088131925,0.00086,67708.0,67707.0,6.48704302]
[1718088132148,0.00186,67708.0,67707.0,6.48704302]
[1718088132527,0.00186,67708.0,67707.0,6.39019157]
[1718088132939,0.00186,67708.0,67707.0,6.40019157]
[1718088132940,0.00086,67708.0,67707.0,6.40019157]
[1718088133311,0.00086,67708.0,67707.0,6.39719157]
[1718088133924,0.00086,67708.0,67707.0,6.40019157]
[1718088134347,0.00086,67708.0,67707.0,6.38719157]
[1718088134534,0.00086,67708.0,67707.0,6.39019157]
[1718088135399,0.00086,67708.0,67707.0,6.40019157]
[1718088135593,0.00086,67708.0,67707.0,6.39019157]
[1718088135961,0.00086,67708.0,67707.0,6.06517086]
[1718088136160,0.00086,67708.0,67707.0,6.39388977]
[1718088136389,0.00086,67708.0,67707.0,5.95417984]
[1718088136539,0.00086,67708.0,67707.0,5.95464446]
[1718088137397,0.00086,67708.0,67707.0,5.96164446]
[1718088137815,0.00086,67708.0,67707.0,6.10896439]
[1718088138271,0.00086,67708.0,67707.0,6.56495439]
[1718088139323,0.00386,67708.0,67707.0,6.56548413]
[1718088139543,0.00086,67708.0,67707.0,6.56248413]
[1718088139738,0.00086,67708.0,67707.0,6.56840078]
[1718088139946,0.00386,67708.0,67707.0,6.56840078]
[1718088140169,0.00386,67708.0,67707.0,6.57140078]
[1718088140904,0.00086,67708.0,67707.0,6.56840078]
[1718088141130,0.00086,67708.0,67707.0,6.57140078]
[1718088142368,0.00386,67708.0,67707.0,6.57140078]
[1718088142925,0.00386,67708.0,67707.0,6.56840078]
[1718088143330,0.00386,67708.0,67707.0,6.57140078]
[1718088143760,0.00386,67708.0,67707.0,6.55840078]
[1718088143959,0.00086,67708.0,67707.0,6.55840078]
[1718088144159,0.00086,67708.0,67707.0,6.40080078]
[1718088144591,0.24166,67708.0,67707.0,6.10241078]
[1718088144782,0.24166,67708.0,67707.0,5.95809085]
[1718088145465,0.24166,67708.0,67707.0,5.77195569]
[1718088145846,0.24166,67708.0,67707.0,5.95797482]
[1718088146075,0.24166,67708.0,67707.0,5.96097482]
[1718088146257,0.24166,67708.0,67707.0,5.77495569]
[1718088146659,0.84626,67708.0,67707.0,5.77195569]
[1718088147019,0.84626,67708.0,67707.0,5.77495569]
[1718088147441,0.85226,67708.0,67707.0,5.77495569]
[1718088147655,0.84626,67708.0,67707.0,5.77495569]
[1718088148062,0.85326,67708.0,67707.0,5.77495569]
[1718088149243,0.85326,67708.0,67707.0,5.77195569]
[1718088149451,0.60546,67708.0,67707.0,5.7715583]
[1718088149654,0.60546,67708.0,67707.0,6.07997823]
[1718088149655,0.61146,67708.0,67707.0,6.07997823]
[1718088149856,0.61146,67708.0,67707.0,6.26607558]
[1718088150217,0.60546,67708.0,67707.0,6.11497558]
[1718088150427,0.61246,67708.0,67707.0,6.11497558]
[1718088150636,0.60546,67708.0,67707.0,6.11197558]
[1718088150849,0.60546,67708.0,67707.0,6.10197558]
[1718088151063,0.61246,67708.0,67707.0,5.64168086]
[1718088151291,0.61246,67708.0,67707.0,5.97794725]
[1718088158137,0.00786,67708.0,67707.0,5.97899309]
[1718088161627,0.00786,67708.0,67707.0,5.89359309]
[1718088162076,0.24326,67708.0,67707.0,5.97899309]
[1718088162917,0.24326,67708.0,67707.0,5.74927316]
[1718088163127,0.24326,67708.0,67707.0,5.83467316]
[1718088163342,0.24326,67708.0,67707.0,5.64771601]
[1718088163560,0.24326,67708.0,67707.0,5.49736093]
[1718088163766,0.24326,67708.0,67707.0,5.83440548]
[1718088164206,0.08896,67708.0,67707.0,5.83440548]
[1718088164420,0.00786,67708.0,67707.0,5.83440548]
[1718088167318,0.00786,67708.0,67707.0,6.14074511]
[1718088168230,0.00786,67708.0,67707.0,6.1502967]
[1718088168439,0.00786,67708.0,67707.0,6.1402967]
[1718088169101,0.00786,67708.0,67707.0,6.1502967]
[1718088170383,0.00786,67708.0,67707.0,6.15016459]
[1718088171218,0.00786,67708.0,67707.0,5.81370056]
[1718088171397,0.00786,67708.0,67707.0,6.14958694]
[1718088171653,0.00786,67708.0,67707.0,6.13958694]
[1718088173693,0.00786,67708.0,67707.0,6.14958694]
[1718088174830,0.00786,67708.0,67707.0,6.20850687]
[1718088175054,0.00786,67708.0,67707.0,6.29390687]
[1718088176231,0.00786,67708.0,67707.0,5.65168086]
[1718088176676,0.00786,67708.0,67707.0,5.56628086]
[1718088176883,0.00786,67708.0,67707.0,6.29412109]
[1718088178556,0.00786,67708.0,67707.0,6.82811109]
[1718088178758,0.00710629,67708.0,67707.0,6.85111109]
[1718088181176,0.00710629,67708.0,67707.0,6.49411109]
[1718088181355,0.00710629,67708.0,67707.0,6.57951109]
[1718088182579,0.00710629,67708.0,67707.0,6.28412109]
[1718088184198,0.00010629,67708.0,67707.0,6.28412109]
[1718088184640,0.00810629,67708.0,67707.0,6.28412109]
[1718088184840,0.00810629,67708.0,67707.0,6.28112109]
[1718088185275,0.00810629,67708.0,67707.0,6.28412109]
[1718088185697,0.00810629,67708.0,67707.0,5.97479275]
[1718088185909,0.00810629,67708.0,67707.0,6.2811305]
[1718088186104,0.00810629,67708.0,67707.0,6.2841305]
[1718088186350,0.00810629,67708.0,67707.0,6.2941305]
[1718088186552,0.00810629,67708.0,67707.0,6.29449291]
[1718088186782,0.00810629,67708.0,67707.0,6.28449291]
[1718088187257,0.00810629,67708.0,67707.0,6.28448464]
[1718088188875,0.00810629,67708.0,67707.0,6.19980056]
[1718088189090,0.00810629,67708.0,67707.0,6.28520056]
[1718088189481,0.00810629,67708.0,67707.0,6.28520324]
[1718088190049,0.00810629,67708.0,67707.0,6.28478596]
[1718088190233,0.00810629,67708.0,67707.0,6.19938596]
[1718088190446,0.00810629,67708.0,67707.0,6.28478596]
[1718088191295,0.00810629,67708.0,67707.0,6.28478859]
[1718088192496,0.00810629,67708.0,67707.0,6.19938859]
[1718088192705,0.00810629,67708.0,67707.0,6.28478859]
[1718088193169,0.00810629,67708.0,67707.0,6.28478502]
[1718088194571,0.00810629,67708.0,67707.0,6.29478502]
[1718088195236,0.00810629,67708.0,67707.0,6.53718502]
[1718088196684,0.00810629,67708.0,67707.0,6.53718318]
[1718088197354,0.00810629,67708.0,67707.0,6.45178318]
[1718088197613,0.00810629,67708.0,67707.0,6.53718318]
[1718088198448,0.00810629,67708.0,67707.0,6.63436925]
[1718088199557,0.00810629,67708.0,67707.0,6.39196925]
[1718088200203,0.00810629,67708.0,67707.0,6.68735925]
[1718088200407,0.00810629,67708.0,67707.0,6.71035925]
[1718088201288,0.00810629,67708.0,67707.0,6.70735925]
[1718088201469,0.00010629,67708.0,67707.0,6.62195925]
[1718088201851,0.00210629,67708.0,67707.0,6.70735925]
[1718088202065,0.00010629,67708.0,67707.0,6.71035925]
[1718088202399,0.08310629,67708.0,67707.0,6.38196925]
[1718088202609,0.08310629,67708.0,67707.0,6.37896925]
[1718088202933,0.24120629,67708.0,67707.0,6.37896925]
[1718088203155,0.24120629,67708.0,67707.0,6.38196925]
[1718088203629,0.24120629,67708.0,67707.0,6.29656925]
[1718088203839,0.24120629,67708.0,67707.0,6.05506325]
[1718088204078,0.24120629,67708.0,67707.0,6.14046325]
[1718088204555,0.24120629,67708.0,67707.0,6.13746325]
[1718088204762,0.24120629,67708.0,67707.0,6.14046325]
[1718088204973,0.24420629,67708.0,67707.0,6.14046325]
[1718088205182,0.24120629,67708.0,67707.0,6.14046325]
[1718088205388,0.24120629,67708.0,67707.0,6.13746325]
[1718088205599,0.24720629,67708.0,67707.0,6.13746325]
[1718088205801,0.24720629,67708.0,67707.0,6.14046325]
[1718088206512,0.24720629,67708.0,67707.0,6.03906325]
[1718088206722,0.24720629,67708.0,67707.0,6.05506325]
[1718088206929,0.24720629,67708.0,67707.0,6.14046325]
[1718088207153,0.24720629,67708.0,67707.0,6.12446325]
[1718088207379,0.24720629,67708.0,67707.0,6.14046325]
[1718088207591,0.24720629,67708.0,67707.0,6.03906325]
[1718088207825,0.24720629,67708.0,67707.0,6.14046325]
[1718088208501,0.24720629,67708.0,67707.0,5.64704832]
[1718088208502,0.24770629,67708.0,67707.0,5.64704832]
[1718088208721,0.24770629,67708.0,67707.0,5.15402505]
[1718088209152,0.66310097,67708.0,67707.0,5.15402505]
[1718088209373,0.24770629,67708.0,67707.0,5.003946]
[1718088209636,0.24770629,67708.0,67707.0,5.14826593]
[1718088210969,0.24170629,67708.0,67707.0,5.29637717]
[1718088211173,0.24170629,67708.0,67707.0,5.14826593]
[1718088211378,0.25570629,67708.0,67707.0,5.14526593]
[1718088211605,0.25570629,67708.0,67707.0,5.29322834]
[1718088212026,0.25570629,67708.0,67707.0,5.14526593]
[1718088212247,0.25570629,67708.0,67707.0,5.29322742]
[1718088213361,0.25570629,67708.0,67707.0,5.14526593]
[1718088214335,0.25570629,67708.0,67707.0,5.29347161]
[1718088215323,0.25570629,67708.0,67707.0,5.30947161]
[1718088216523,0.01410629,67708.0,67707.0,5.30969738]
[1718088218663,0.01410629,67708.0,67707.0,5.29369738]
[1718088218860,0.24460629,67708.0,67707.0,5.29369738]
[1718088219208,0.24460629,67708.0,67707.0,5.14526593]
[1718088219646,0.24460629,67708.0,67707.0,5.37914541]
[1718088222217,0.24460629,67708.0,67707.0,5.39514541]
[1718088222429,0.24460629,67708.0,67707.0,5.37914541]
[1718088223195,0.24460629,67708.0,67707.0,5.39514541]
[1718088223918,0.24460629,67708.0,67707.0,5.37914541]
[1718088224143,0.24460629,67708.0,67707.0,5.30974541]
[1718088224361,0.01410629,67708.0,67707.0,5.39514541]
[1718088225252,0.01410629,67708.0,67707.0,5.47173807]
[1718088225873,0.01410629,67708.0,67707.0,5.45573807]
[1718088226075,0.01410629,67708.0,67707.0,5.47173807]
[1718088234006,0.01410629,67708.0,67707.0,5.22601814]
[1718088234007,0.44706608,67708.0,67707.0,5.22601814]
[1718088234225,0.24110629,67708.0,67707.0,5.14942548]
[1718088234633,0.24110629,67708.0,67707.0,5.000946]
[1718088234875,0.38542622,67708.0,67707.0,5.000946]
[1718088235097,0.57712141,67708.0,67707.0,5.14526593]
[1718088235307,0.43562468,67708.0,67707.0,5.14526593]
[1718088236158,0.39162249,67708.0,67707.0,5.14526593]
[1718088236375,0.24730256,67708.0,67707.0,5.14526593]
[1718088236577,0.24730256,67708.0,67707.0,5.16126593]
[1718088236778,0.08980629,67708.0,67707.0,5.24666593]
[1718088237013,0.01410629,67708.0,67707.0,5.24666593]
[1718088237219,0.00010629,67708.0,67707.0,5.3932915]
[1718088237616,0.00910629,67708.0,67707.0,5.3942915]
[1718088238051,0.02310629,67708.0,67707.0,5.4708865]
[1718088238884,0.01410629,67708.0,67707.0,5.4698865]
[1718088239031,0.01410629,67708.0,67707.0,5.24666593]
[1718088239252,0.01510629,67708.0,67707.0,5.47043687]
[1718088240321,0.00110629,67708.0,67707.0,5.47043687]
[1718088240461,0.01510629,67708.0,67707.0,5.47043687]
[1718088241318,0.01410629,67708.0,67707.0,5.47043687]
[1718088241522,0.01510629,67708.0,67707.0,5.47043687]
[1718088241943,0.01510629,67708.0,67707.0,5.4703174]
[1718088243872,0.01510629,67708.0,67707.0,5.3849174]
[1718088244044,0.01510629,67708.0,67707.0,5.4703174]
[1718088244629,0.01510629,67708.0,67707.0,5.4543174]
[1718088244886,0.01510629,67708.0,67707.0,5.3689174]
[1718088244887,0.26050629,67708.0,67707.0,5.3689174]
[1718088245495,0.26050629,67708.0,67707.0,5.29232535]
[1718088246534,0.26050629,67708.0,67707.0,5.14526593]
[1718088246737,0.26050629,67708.0,67707.0,5.29232972]
[1718088249449,0.01510629,67708.0,67707.0,5.45602472]
[1718088249662,0.01510629,67708.0,67707.0,5.69352472]
[1718088249858,0.01510629,67708.0,67707.0,5.77011671]
[1718088250518,0.01510629,67708.0,67707.0,5.84781671]
[1718088250728,0.01510629,67708.0,67707.0,5.99692711]
[1718088251344,0.01510629,67708.0,67707.0,6.18199312]
[1718088253311,0.01510629,67708.0,67707.0,5.99692711]
[1718088256541,0.01510629,67708.0,67707.0,5.91152711]
[1718088256755,0.01510629,67708.0,67707.0,5.68172711]
[1718088256966,0.01510629,67708.0,67707.0,5.60201671]
[1718088257092,0.01510629,67708.0,67707.0,5.51661671]
[1718088257521,0.01510629,67708.0,67707.0,5.60201671]
[1718088258115,0.01510629,67708.0,67707.0,5.51661671]
[1718088259570,0.17920629,67708.0,67707.0,5.51661671]
[1718088261400,0.17920629,67708.0,67707.0,5.37229678]
[1718088261745,0.17920629,67708.0,67707.0,5.22460178]
[1718088261873,0.17920629,67708.0,67707.0,5.14800979]
[1718088262267,0.25910629,67708.0,67707.0,5.14800979]
[1718088262705,0.25910629,67708.0,67707.0,5.000946]
[1718088263102,0.25910629,67708.0,67707.0,5.14526593]
[1718088264888,0.25910629,67708.0,67707.0,5.000946]
[1718088265102,0.30311568,67708.0,67707.0,5.000946]
[1718088265306,0.25910629,67708.0,67707.0,5.000946]
[1718088265478,0.40982962,67708.0,67707.0,5.000946]
[1718088265690,0.40342622,67708.0,67707.0,5.000946]
[1718088265902,0.40982962,67708.0,67707.0,5.000946]
[1718088266343,0.4538304,67708.0,67707.0,5.14526593]
[1718088266550,0.56126739,67708.0,67707.0,5.14526593]
[1718088267193,0.56126739,67708.0,67707.0,5.000946]
[1718088267402,0.55486399,67708.0,67707.0,5.000946]
[1718088267600,0.47586739,67708.0,67707.0,5.000946]
[1718088268198,0.40982962,67708.0,67707.0,5.000946]
[1718088269006,0.45382329,67708.0,67707.0,5.000946]
[1718088269219,0.40982962,67708.0,67707.0,5.000946]
[1718088269394,0.45382329,67708.0,67707.0,5.14526593]
[1718088269799,0.73713442,67708.0,67707.0,5.14526593]
[1718088270015,0.40982962,67708.0,67707.0,5.14526593]
[1718088270238,0.47581729,67708.0,67707.0,5.14526593]
[1718088271728,0.47758974,67708.0,67707.0,5.14526593]
[1718088272806,0.47758974,67708.0,67707.0,5.000946]
[1718088273453,0.41160207,67708.0,67707.0,5.000946]
[1718088275028,0.26728214,67708.0,67707.0,5.000946]
[1718088275232,0.05907379,67708.0,67707.0,5.000946]
[1718088275409,0.01510629,67708.0,67707.0,5.000946]
[1718088275645,0.01510629,67708.0,67707.0,5.14526593]
[1718088284369,0.01510629,67708.0,67707.0,5.000946]
[1718088284370,0.40592622,67708.0,67707.0,5.000946]
[1718088284575,0.4140611,67708.0,67707.0,5.000946]
[1718088284795,0.82676266,67708.0,67707.0,5.000946]
[1718088284998,0.91481302,67708.0,67707.0,5.000946]
[1718088285256,0.91469202,67708.0,67707.0,5.000946]
[1718088285467,1.11469202,67708.0,67707.0,5.000946]
[1718088285667,1.17445566,67708.0,67707.0,5.000946]
[1718088285900,1.1955064,67708.0,67707.0,5.000946]
[1718088286113,1.16045566,67708.0,67707.0,5.000946]
[1718088286323,1.17445566,67708.0,67707.0,5.000946]
[1718088286543,1.17345566,67708.0,67707.0,5.000946]
[1718088287075,1.27345566,67708.0,67707.0,5.000946]
[1718088287276,1.28245566,67708.0,67707.0,5.001946]
[1718088287467,1.30352815,67708.0,67707.0,5.001946]
[1718088287667,1.29452815,67708.0,67707.0,5.000946]
[1718088287884,1.27349148,67708.0,67707.0,5.000946]
[1718088288089,1.28649148,67708.0,67707.0,5.001946]
[1718088288294,1.39634797,67708.0,67707.0,5.001946]
[1718088290353,1.28649152,67708.0,67707.0,5.001946]
[1718088292070,1.20109152,67708.0,67707.0,5.001946]
[1718088292288,1.28649152,67708.0,67707.0,5.001946]
[1718088293147,1.20109152,67708.0,67707.0,5.001946]
[1718088293365,1.28649152,67708.0,67707.0,5.001946]
[1718088294277,1.37433059,67708.0,67707.0,5.001946]
[1718088294757,1.39200452,67708.0,67707.0,5.001946]
[1718088295208,1.30416545,67708.0,67707.0,5.001946]
[1718088295890,2.03960724,67708.0,67707.0,5.001946]
[1718088296105,2.08393848,67708.0,67707.0,5.001946]
[1718088296321,2.11880894,67708.0,67707.0,5.001946]
[1718088296534,2.21880894,67708.0,67707.0,5.001946]
[1718088296756,2.06148901,67708.0,67707.0,5.000946]
[1718088297203,2.07350946,67708.0,67707.0,5.001946]
[1718088297644,2.06150946,67708.0,67707.0,5.000946]
[1718088297883,2.04750946,67708.0,67707.0,5.000946]
[1718088298089,1.96210946,67708.0,67707.0,5.000946]
[1718088298309,2.04750946,67708.0,67707.0,5.000946]
[1718088298532,2.06150946,67708.0,67707.0,5.000946]
[1718088298773,2.04750946,67708.0,67707.0,5.000946]
[1718088299235,1.99010946,67708.0,67707.0,5.000946]
[1718088299446,2.07550946,67708.0,67707.0,5.000946]
[1718088300277,2.21982939,67708.0,67707.0,5.000946]
[1718088301194,2.21982939,67708.0,67707.0,4.80730351]
[1718088301426,2.44403198,67708.0,67707.0,4.60148434]
[1718088301647,2.33609382,67708.0,67707.0,4.59848434]
[1718088301857,2.4441031,67708.0,67707.0,4.59848434]
[1718088302076,1.7707088,67708.0,67707.0,4.59848434]
[1718088302298,1.8421088,67708.0,67707.0,4.59848434]
[1718088302529,1.34372346,67708.0,67707.0,4.59848434]
[1718088302739,1.19312346,67708.0,67707.0,4.59848434]
[1718088302972,1.04310004,67708.0,67707.0,4.59848434]
[1718088303196,0.77916437,67708.0,67707.0,4.59848434]
[1718088303415,0.25017536,67708.0,67707.0,4.59848434]
[1718088303640,0.2105228,67708.0,67707.0,4.59848434]
[1718088303858,0.14442622,67708.0,67707.0,4.59848434]
[1718088304067,0.16825969,67708.0,67707.0,4.59848434]
[1718088304316,0.15842622,67708.0,67707.0,4.59848434]
[1718088304533,0.15842622,67708.0,67707.0,4.74280427]
[1718088304761,0.02393976,67708.0,67707.0,4.74280427]
[1718088304980,0.01410629,67708.0,67707.0,4.74280427]
[1718088305485,0.02810629,67708.0,67707.0,4.74280427]
[1718088305710,0.01410629,67708.0,67707.0,4.74280427]
[1718088305929,0.00010629,67708.0,67707.0,4.74280427]
[1718088306145,0.02110629,67708.0,67707.0,4.74280427]
[1718088306852,0.00710629,67708.0,67707.0,4.74280427]
[1718088307088,0.00810629,67708.0,67707.0,4.75880427]
[1718088307782,0.00810629,67708.0,67707.0,4.74280427]
[1718088309059,0.15142622,67708.0,67707.0,4.59848434]
[1718088309448,0.16132224,67708.0,67707.0,4.59848434]
[1718088309652,0.02500231,67708.0,67707.0,4.61448434]
[1718088309873,0.00810629,67708.0,67707.0,4.59848434]
[1718088310304,0.00010629,67708.0,67707.0,4.75880427]
[1718088310509,0.00810629,67708.0,67707.0,4.74280427]
[1718088310737,0.01710629,67708.0,67707.0,4.74280427]
[1718088311469,0.00910629,67708.0,67707.0,4.74280427]
[1718088311922,0.01610629,67708.0,67707.0,4.74280427]
[1718088312225,0.00010629,67708.0,67707.0,4.74280427]
[1718088312478,0.00810629,67708.0,67707.0,4.74280427]
[1718088312690,0.01610629,67708.0,67707.0,4.74280427]
[1718088312908,0.01610629,67708.0,67707.0,4.98060427]
[1718088313145,0.00810629,67708.0,67707.0,4.98060427]
[1718088313576,0.01710629,67708.0,67707.0,4.98060427]
[1718088315919,0.01710629,67708.0,67707.0,4.74280427]
[1718088316124,0.01710629,67708.0,67707.0,4.59848434]
[1718088318666,0.01710629,67708.0,67707.0,4.67498434]
[1718088320302,0.01710629,67708.0,67707.0,4.59848434]
[1718088320919,0.16142622,67708.0,67707.0,4.59848434]
[1718088321658,0.17136784,67708.0,67707.0,4.59848434]
[1718088322581,0.37136784,67708.0,67707.0,4.59848434]
[1718088323008,0.17136784,67708.0,67707.0,4.59848434]
[1718088324048,0.37136784,67708.0,67707.0,4.59848434]
[1718088324253,0.17136784,67708.0,67707.0,4.59848434]
[1718088325289,0.32726784,67708.0,67707.0,4.59848434]
[1718088325852,0.52726784,67708.0,67707.0,4.59848434]
[1718088326274,1.00228178,67708.0,67707.0,4.59848434]
[1718088326685,1.09016688,67708.0,67707.0,4.59848434]
[1718088327128,1.19016688,67708.0,67707.0,4.59848434]
[1718088327361,1.17898178,67708.0,67707.0,4.59848434]
[1718088328010,0.87898178,67708.0,67707.0,4.59848434]
[1718088328232,0.58662331,67708.0,67707.0,4.59848434]
[1718088328653,0.57762331,67708.0,67707.0,4.59848434]
[1718088328885,0.17636784,67708.0,67707.0,4.59848434]
[1718088329561,0.37636784,67708.0,67707.0,4.59848434]
[1718088329826,0.39036784,67708.0,67707.0,4.59848434]
[1718088330040,0.95331442,67708.0,67707.0,4.59848434]
[1718088330245,0.48322333,67708.0,67707.0,4.74280427]
[1718088330451,0.36342534,67708.0,67707.0,4.90120427]
[1718088330687,0.45137696,67708.0,67707.0,4.90120427]
[1718088330904,0.03610629,67708.0,67707.0,4.90120427]
[1718088331949,0.03610629,67708.0,67707.0,4.75688434]
[1718088335204,0.18042622,67708.0,67707.0,4.75688434]
[1718088335652,0.19027346,67708.0,67707.0,4.75688434]
[1718088335857,0.23425507,67708.0,67707.0,4.75688434]
[1718088336565,0.43425507,67708.0,67707.0,4.75688434]
[1718088337005,0.58194807,67708.0,67707.0,4.75688434]
[1718088337293,0.53796646,67708.0,67707.0,4.59848434]
[1718088337520,0.60393888,67708.0,67707.0,4.59848434]
[1718088337741,0.53796646,67708.0,67707.0,4.59848434]
[1718088337961,0.60393368,67708.0,67707.0,4.59848434]
[1718088338421,0.53796646,67708.0,67707.0,4.59848434]
[1718088338643,0.40393498,67708.0,67707.0,4.59848434]
[1718088338897,0.60393498,67708.0,67707.0,4.59848434]
[1718088339823,2.06747709,67708.0,67707.0,4.59848434]
[1718088340039,2.38887678,67708.0,67707.0,4.59848434]
[1718088340482,2.05163828,67708.0,67707.0,4.59848434]
[1718088340952,2.18571713,67708.0,67707.0,4.59848434]
[1718088341165,2.06371713,67708.0,67707.0,4.59848434]
[1718088341373,2.16371713,67708.0,67707.0,4.59848434]
[1718088341645,2.07771713,67708.0,67707.0,4.59848434]
[1718088341874,2.06371713,67708.0,67707.0,4.59848434]
[1718088342294,2.07771713,67708.0,67707.0,4.59848434]
[1718088342722,2.06371713,67708.0,67707.0,4.59848434]
[1718088343356,1.48752474,67708.0,67707.0,4.59848434]
[1718088343635,1.74558244,67708.0,67707.0,4.59848434]
[1718088343847,0.6055731,67708.0,67707.0,4.59848434]
[1718088344075,0.02395353,67708.0,67707.0,4.59848434]
[1718088344297,0.03795353,67708.0,67707.0,4.59848434]
[1718088344536,0.02810629,67708.0,67707.0,4.59848434]
[1718088345054,0.01410629,67708.0,67707.0,4.59848434]
[1718088345278,0.01410629,67708.0,67707.0,4.74280427]
[1718088345502,0.02810629,67708.0,67707.0,4.74280427]
[1718088345944,0.00010629,67708.0,67707.0,4.74280427]
[1718088346468,0.00810629,67708.0,67707.0,4.74280427]
[1718088346682,0.00710629,67708.0,67707.0,4.74280427]
[1718088346900,0.01410629,67708.0,67707.0,4.89262126]
[1718088347288,0.00710629,67708.0,67707.0,4.89262126]
[1718088347508,0.00710629,67708.0,67707.0,4.90862126]
[1718088347709,0.01510629,67708.0,67707.0,4.90862126]
[1718088347910,0.00710629,67708.0,67707.0,4.90862126]
[1718088348143,0.00710629,67708.0,67707.0,4.98521296]
[1718088348312,0.00010629,67708.0,67707.0,4.98521296]
[1718088348461,0.00010629,67708.0,67707.0,5.13290796]
[1718088348916,0.00010629,67708.0,67707.0,5.11690796]
[1718088349068,0.00910629,67708.0,67707.0,5.05631626]
[1718088349456,0.01610629,67708.0,67707.0,5.05563041]
[1718088349657,0.00010629,67708.0,67707.0,5.03963041]
[1718088350051,0.00010629,67708.0,67707.0,4.89826406]
[1718088350254,0.00010629,67708.0,67707.0,4.74961548]
[1718088350799,0.00010629,67708.0,67707.0,4.74861548]
[1718088351054,0.00010629,67708.0,67707.0,4.74961548]
[1718088351493,0.00010629,67708.0,67707.0,4.74861548]
[1718088351677,0.00010629,67708.0,67707.0,4.89293541]
[1718088351976,0.00010629,67708.0,67707.0,4.89393541]
[1718088352418,0.00010629,67708.0,67707.0,4.89193541]
[1718088352607,0.00310629,67708.0,67707.0,4.89193541]
[1718088353375,0.00410629,67708.0,67707.0,4.89193541]
[1718088353995,0.00410629,67708.0,67707.0,5.03963041]
[1718088354604,0.00110629,67708.0,67707.0,5.03963041]
[1718088355146,0.00410629,67708.0,67707.0,5.03963041]
[1718088355568,0.00010629,67708.0,67707.0,5.03963041]